bitfinex/quotes_BTCUSD_20260104
["timestamp","ask_amount","ask_price","bid_price","bid_amount"]
[1767568991618,0.0109469,91350.0,91343.0,0.01094774]
[1767568992193,0.01094702,91349.0,91340.0,0.02192]
[1767568992393,0.0109475,91345.0,91340.0,0.02192]
[1767568992758,0.01094738,91346.0,91340.0,0.02192]
[1767568992964,0.01094726,91347.0,91340.0,0.02192]
[1767568993147,0.01094726,91347.0,91340.0,0.0328681]
[1767568993349,0.01094714,91348.0,91340.0,0.0328681]
[1767568994007,0.0004,91379.0,91364.0,0.01094523]
[1767568994252,0.0004,91379.0,91376.0,0.01094379]
[1767568994373,1e-08,91379.0,91378.0,0.05462776]
[1767568994578,1e-08,91379.0,91378.0,0.05453776]
[1767568995394,1e-08,91384.0,91382.0,0.05471537]
[1767568995934,1e-08,91384.0,91381.0,0.01094319]
[1767568996142,1e-08,91384.0,91378.0,0.000359]
[1767568997180,1e-08,91384.0,91381.0,0.01094319]
[1767568997384,1e-08,91384.0,91382.0,0.05471537]
[1767568997536,1e-08,91384.0,91381.0,0.01094319]
[1767568997741,1e-08,91384.0,91381.0,0.06565862]
[1767568997945,1e-08,91384.0,91381.0,0.01085319]
[1767568998343,1e-08,91384.0,91382.0,0.05471537]
[1767568998800,0.0004,91391.0,91385.0,0.06565614]
[1767568998970,0.0004,91391.0,91385.0,0.01094271]
[1767568999134,0.0004,91391.0,91386.0,0.01094259]
[1767568999538,0.01094163,91394.0,91387.0,0.01094247]
[1767568999765,0.05470469,91400.0,91388.0,0.06565412]
[1767568999961,0.05470469,91400.0,91391.0,0.01094199]
[1767568999962,0.01094103,91399.0,91391.0,0.01094199]
[1767569000140,0.01094115,91398.0,91391.0,0.01094199]
[1767569000382,0.01094115,91398.0,91390.0,0.01094211]
[1767569000584,0.01094115,91398.0,91391.0,0.01094199]
[1767569000766,0.05832174,91398.0,91391.0,0.01094199]
[1767569000972,0.04632186,91397.0,91389.0,0.01094223]
[1767569001176,0.01094139,91396.0,91387.0,0.01094247]
[1767569001377,0.04632186,91397.0,91384.0,0.01094283]
[1767569001609,0.0583221,91395.0,91388.0,0.01094235]
[1767569001840,0.04738059,91395.0,91390.0,0.01094211]
[1767569001983,0.04738059,91395.0,91391.0,0.01094199]
[1767569002187,0.04738059,91395.0,91390.0,0.06565227]
[1767569002408,0.0001538,91401.0,91395.0,0.05470758]
[1767569002630,0.0001538,91401.0,91395.0,0.01194051]
[1767569002842,0.0001538,91401.0,91395.0,0.01094151]
[1767569003043,0.0001538,91401.0,91398.0,0.01094115]
[1767569003443,0.0004,91403.0,91401.0,0.05485698]
[1767569003955,0.0004,91403.0,91401.0,0.05470399]
[1767569004196,4.004e-05,91418.0,91411.0,0.0109396]
[1767569004391,0.01093888,91417.0,91409.0,0.01093984]
[1767569004594,0.0109788,91418.0,91409.0,0.01093984]
[1767569004768,0.04738059,91415.0,91409.0,0.01093984]
[1767569004947,0.010939,91416.0,91409.0,0.01084985]
[1767569005148,0.010939,91416.0,91408.0,0.05627424]
[1767569005354,0.010939,91416.0,91408.0,0.04844757]
[1767569005756,4.004e-05,91418.0,91411.0,0.0109396]
[1767569005983,4.004e-05,91418.0,91412.0,0.01093948]
[1767569006183,4.004e-05,91418.0,91413.0,0.01093936]
[1767569006350,0.01093972,91410.0,91400.0,0.01094091]
[1767569006543,0.0109396,91411.0,91401.0,0.0003598]
[1767569006801,0.06563779,91411.0,91402.0,0.03286067]
[1767569006944,0.01093984,91409.0,91402.0,0.02192]
[1767569007149,0.0109396,91411.0,91403.0,0.01094055]
[1767569007351,0.0109396,91411.0,91404.0,0.01094044]
[1767569007579,0.01093972,91410.0,91402.0,0.01094067]
[1767569007782,0.01093972,91410.0,91402.0,0.02192]
[1767569007991,0.00476607,91411.0,91402.0,0.03286067]
[1767569008193,0.00476607,91411.0,91403.0,0.01094055]
[1767569008414,0.04738059,91416.0,91411.0,0.000999]
[1767569008627,4.004e-05,91418.0,91412.0,0.01093948]
[1767569008786,0.01133828,91422.0,91412.0,0.06563654]
[1767569008998,0.01133828,91422.0,91412.0,0.01093948]
[1767569009176,0.01093852,91420.0,91412.0,0.01093948]
[1767569009376,0.01093876,91418.0,91411.0,0.0109396]
[1767569009629,0.01093876,91418.0,91412.0,0.01093948]
[1767569009834,0.01093876,91418.0,91411.0,0.0109396]
[1767569010186,0.01093864,91419.0,91411.0,0.0109396]
[1767569010582,0.01093852,91420.0,91412.0,0.01093948]
[1767569010850,0.01093852,91420.0,91413.0,0.01093936]
[1767569011584,0.01093864,91419.0,91412.0,0.01093948]
[1767569011813,0.01093876,91418.0,91411.0,0.0109396]
[1767569012028,0.01093864,91419.0,91412.0,0.01093948]
[1767569012638,0.01093876,91418.0,91412.0,0.01093948]
[1767569013115,0.01093864,91419.0,91412.0,0.01093948]
[1767569013863,0.01093876,91418.0,91411.0,0.0109396]
[1767569014201,0.01093876,91418.0,91412.0,0.01093948]
[1767569014376,0.01093876,91418.0,91411.0,0.0109396]
[1767569014783,0.01093876,91418.0,91412.0,0.01093948]
[1767569014983,0.01093876,91418.0,91411.0,0.0109396]
[1767569015867,0.01093864,91419.0,91412.0,0.01093948]
[1767569016556,0.05509196,91422.0,91413.0,0.01093936]
[1767569016836,0.0477497,91432.0,91421.0,0.05469202]
[1767569017027,0.01093673,91435.0,91425.0,0.01093792]
[1767569017320,0.01093697,91433.0,91425.0,0.01093792]
[1767569017475,9.2e-07,91428.0,91424.0,0.01093804]
[1767569017879,9.2e-07,91428.0,91425.0,0.01093792]
[1767569018593,9.2e-07,91428.0,91424.0,0.01093804]
[1767569018826,9.2e-07,91428.0,91423.0,0.01093816]
[1767569019177,9.2e-07,91428.0,91424.0,0.01093804]
[1767569019381,9.2e-07,91428.0,91423.0,0.01093816]
[1767569020017,9.2e-07,91428.0,91424.0,0.01093804]
[1767569020819,9.2e-07,91428.0,91425.0,0.01093792]
[1767569021226,9.2e-07,91428.0,91426.0,0.05468903]
[1767569021426,9.2e-07,91428.0,91426.0,0.10011694]
[1767569021650,9.2e-07,91428.0,91427.0,0.04542791]
[1767569022218,9.2e-07,91428.0,91425.0,0.01093792]
[1767569022430,9.2e-07,91428.0,91425.0,0.00704133]
[1767569023999,0.00704133,91425.0,91418.0,0.03285876]
[1767569024140,9.2e-07,91428.0,91421.0,0.0109384]
[1767569024345,0.01093697,91433.0,91427.0,0.09192233]
[1767569024739,0.06562038,91435.0,91427.0,0.09185387]
[1767569024950,0.0001538,91438.0,91435.0,0.000999]
[1767569025484,0.0001538,91438.0,91433.0,0.01093697]
[1767569025711,0.0001538,91438.0,91432.0,0.01093708]
[1767569025849,0.0001538,91438.0,91433.0,0.01093697]
[1767569026058,0.00530415,91439.0,91433.0,0.0003598]
[1767569026259,0.01093613,91440.0,91433.0,0.01129677]
[1767569026660,0.05868571,91441.0,91433.0,0.01129677]
[1767569026976,0.01093589,91442.0,91435.0,0.01093673]
[1767569027330,0.01093601,91441.0,91434.0,0.01093685]
[1767569027529,0.01093601,91441.0,91397.0,0.032]
[1767569027530,0.05469202,91421.0,91410.0,0.05469829]
[1767569027739,0.02192,91421.0,91415.0,0.05469505]
[1767569027936,0.02192,91421.0,91419.0,0.04542791]
[1767569028148,0.02185122,91421.0,91416.0,0.04542791]
[1767569028337,0.01093804,91424.0,91417.0,0.04542791]
[1767569028979,0.01093816,91423.0,91417.0,0.04542791]
[1767569029333,0.01093816,91423.0,91417.0,0.04442891]
[1767569029531,0.06562803,91425.0,91417.0,0.04442891]
[1767569029721,0.01093804,91424.0,91417.0,0.05536779]
[1767569029920,0.01093816,91423.0,91417.0,0.04442891]
[1767569030162,0.01093828,91422.0,91417.0,0.04442891]
[1767569030474,0.01093816,91423.0,91416.0,0.010939]
[1767569030697,0.01093816,91423.0,91415.0,0.01130005]
[1767569030698,0.0109384,91421.0,91415.0,0.00036093]
[1767569031191,0.01093828,91422.0,91415.0,0.00036093]
[1767569031390,0.05469428,91418.0,91416.0,0.04542791]
[1767569031591,0.05469428,91418.0,91415.0,0.00036093]
[1767569031592,0.06563304,91418.0,91415.0,0.00036093]
[1767569031823,0.06553937,91409.0,91406.0,0.0001538]
[1767569031939,0.00036041,91409.0,91400.0,0.10514348]
[1767569032144,0.00036093,91415.0,91409.0,0.00063859]
[1767569032398,0.01093924,91414.0,91409.0,0.04547522]
[1767569032600,0.010939,91416.0,91414.0,0.04542791]
[1767569032765,0.01093888,91417.0,91414.0,0.04542791]
[1767569033105,0.01093744,91429.0,91419.0,0.04542791]
[1767569033301,0.01093744,91429.0,91420.0,0.04542791]
[1767569033302,0.01093792,91425.0,91420.0,0.04542791]
[1767569033509,0.0109378,91426.0,91420.0,0.04542791]
[1767569033660,0.01093756,91428.0,91420.0,0.04542791]
[1767569033866,0.06056257,91429.0,91420.0,0.04542791]
[1767569034064,0.01093768,91427.0,91420.0,0.04542791]
[1767569034266,0.01093744,91429.0,91427.0,0.000639]
[1767569034513,0.0656254,91428.0,91427.0,0.04542791]
[1767569034717,0.0109378,91426.0,91421.0,0.04542791]
[1767569034916,0.0109378,91426.0,91417.0,0.04542791]
[1767569034917,0.00036,91421.0,91417.0,0.04542791]
[1767569035090,0.01093816,91423.0,91417.0,0.04542791]
[1767569035884,0.00036,91417.0,91416.0,0.09092233]
[1767569036275,0.01093864,91419.0,91416.0,0.09092233]
[1767569036514,0.0656321,91419.0,91416.0,0.09092233]
[1767569036727,0.0656321,91419.0,91416.0,0.04138303]
[1767569036950,0.0656321,91419.0,91416.0,0.04102303]
[1767569038182,0.05469435,91418.0,91416.0,0.04102303]
[1767569039681,0.01093936,91413.0,91410.0,0.04542791]
[1767569039858,0.01093924,91414.0,91410.0,0.04542791]
[1767569040189,0.06563617,91413.0,91409.0,0.02196731]
[1767569040361,0.01093924,91414.0,91409.0,0.02196731]
[1767569040768,0.01093936,91413.0,91409.0,0.02196731]
[1767569040965,0.0516341,91416.0,91409.0,0.02196731]
[1767569041336,0.01093924,91414.0,91409.0,0.07018791]
[1767569041688,0.01093948,91412.0,91409.0,0.06918891]
[1767569041847,0.01093936,91413.0,91409.0,0.06918891]
[1767569042079,0.01093924,91414.0,91413.0,0.000999]
[1767569042511,0.01093936,91413.0,91409.0,0.02096831]
[1767569043680,0.01093948,91412.0,91409.0,0.02096831]
[1767569044396,0.01093948,91412.0,91409.0,0.01001194]
[1767569044614,0.01093924,91414.0,91409.0,0.01001194]
[1767569044779,0.010939,91416.0,91409.0,0.01001194]
[1767569045439,0.01089828,91417.0,91409.0,0.01001194]
[1767569045638,0.06563308,91418.0,91409.0,0.01001194]
[1767569045884,0.06554503,91418.0,91409.0,0.01001194]
[1767569046035,0.01093948,91412.0,91409.0,0.01001194]
[1767569046240,0.05469801,91411.0,91409.0,0.01001194]
[1767569046434,0.06563732,91412.0,91409.0,0.01001194]
[1767569046699,0.05469801,91411.0,91410.0,0.0482206]
[1767569046893,0.06563732,91412.0,91410.0,0.0482206]
[1767569047109,0.05469861,91410.0,91409.0,1e-08]
[1767569047309,0.01084043,91404.0,91401.0,0.14014293]
[1767569047483,0.06454406,91404.0,91402.0,0.02192]
[1767569047640,0.05470339,91402.0,91401.0,0.09196988]
[1767569047843,0.01094079,91401.0,91399.0,0.0482206]
[1767569048041,0.05470339,91402.0,91399.0,0.0482206]
[1767569048042,0.01094067,91402.0,91399.0,0.04858101]
[1767569048483,0.01094163,91394.0,91391.0,0.0482206]
[1767569048798,0.00036047,91394.0,91393.0,0.0701406]
[1767569049090,0.00022291,91394.0,91390.0,0.0806399]
[1767569049316,0.05470998,91391.0,91390.0,0.0806399]
[1767569049529,0.05450996,91391.0,91390.0,0.0577209]
[1767569049903,0.01094283,91384.0,91381.0,0.09192233]
[1767569050101,0.00994383,91384.0,91381.0,0.09192233]
[1767569050668,0.01084294,91383.0,91380.0,0.02192]
[1767569050911,0.00994383,91384.0,91380.0,0.020921]
[1767569051207,0.01094271,91385.0,91380.0,0.10414448]
[1767569051372,0.00994371,91385.0,91380.0,0.10414448]
[1767569051577,0.01094295,91383.0,91380.0,0.020921]
[1767569051770,0.01094307,91382.0,91374.0,0.05916463]
[1767569052420,0.01087464,91379.0,91374.0,0.0482206]
[1767569052619,0.01094319,91381.0,91374.0,0.0482206]
[1767569052797,0.01094307,91382.0,91374.0,0.05916463]
[1767569053010,0.01094307,91382.0,91375.0,0.01094391]
[1767569053232,0.01094283,91384.0,91374.0,0.05916463]
[1767569053416,0.01094283,91384.0,91376.0,0.01094379]
[1767569053638,0.01094307,91382.0,91374.0,0.05916463]
[1767569053857,0.01094295,91383.0,91375.0,0.01094391]
[1767569054340,0.01094295,91383.0,91376.0,0.01094379]
[1767569054502,0.01094295,91383.0,91375.0,0.01094391]
[1767569054503,0.01094307,91382.0,91375.0,0.01094391]
[1767569054845,0.01094319,91381.0,91374.0,0.05916463]
[1767569055049,0.01094319,91381.0,91373.0,0.02192]
[1767569055050,0.01094343,91379.0,91373.0,0.02192]
[1767569055210,0.000999,91374.0,91373.0,0.02192]
[1767569055412,0.01094355,91378.0,91373.0,0.02192]
[1767569055671,0.01094343,91379.0,91373.0,0.02192]
[1767569055947,0.01094367,91377.0,91373.0,0.02192]
[1767569056145,0.01094355,91378.0,91373.0,0.02192]
[1767569056307,0.01094343,91379.0,91373.0,0.02192]
[1767569056514,0.01094355,91378.0,91373.0,0.02192]
[1767569056703,0.01094343,91379.0,91373.0,0.02192]
[1767569057148,0.01094367,91377.0,91373.0,0.02192]
[1767569057509,0.01084378,91376.0,91373.0,0.02192]
[1767569057929,0.01094331,91380.0,91373.0,0.02192]
[1767569058133,0.01094355,91378.0,91373.0,0.02192]
[1767569058334,0.01094343,91379.0,91373.0,0.02192]
[1767569058534,0.01094331,91380.0,91373.0,0.02192]
[1767569059138,0.01094343,91379.0,91373.0,0.02192]
[1767569060068,0.01094355,91378.0,91373.0,0.02192]
[1767569060287,0.01084335,91379.0,91373.0,0.02192]
[1767569060456,0.01094355,91378.0,91374.0,0.0482206]
[1767569061451,0.01075548,91378.0,91374.0,0.0482206]
[1767569061849,0.01084335,91379.0,91374.0,0.0482206]
[1767569062048,0.01094355,91378.0,91374.0,0.0482206]
[1767569062259,0.01094355,91378.0,91373.0,0.02192]
[1767569062260,0.000999,91374.0,91373.0,0.02192]
[1767569062472,0.00089899,91374.0,91373.0,0.02192]
[1767569062669,0.01094367,91377.0,91373.0,0.02192]
[1767569062873,0.01089879,91376.0,91373.0,0.02192]
[1767569063833,0.01079877,91376.0,91373.0,0.021021]
[1767569064121,0.05251817,91376.0,91373.0,0.021021]
[1767569064423,0.01094403,91374.0,91369.0,0.00038394]
[1767569064580,0.01094403,91374.0,91369.0,0.04860454]
[1767569064792,0.01094379,91376.0,91369.0,0.04860454]
[1767569064976,0.01094379,91376.0,91374.0,0.000999]
[1767569065382,0.01094379,91376.0,91370.0,0.13144408]
[1767569065583,0.01094391,91375.0,91370.0,0.13144408]
[1767569065885,0.01094415,91373.0,91369.0,0.00038394]
[1767569066096,0.01084425,91372.0,91369.0,0.00038394]
[1767569066300,0.05472247,91371.0,91369.0,0.00038394]
[1767569068230,0.0655656,91372.0,91371.0,0.000999]
[1767569068450,0.01084425,91372.0,91369.0,0.00038394]
[1767569069761,0.01085609,91373.0,91369.0,0.00038394]
[1767569070667,0.01094427,91372.0,91369.0,0.00038394]
[1767569071887,0.0656661,91372.0,91369.0,9.4e-07]
[1767569072129,0.05472255,91370.0,91369.0,9.4e-07]
[1767569073714,0.0656661,91372.0,91369.0,9.4e-07]
[1767569073859,0.0656661,91372.0,91370.0,0.000383]
[1767569074255,0.05462235,91371.0,91369.0,9.4e-07]
[1767569079485,0.03262235,91371.0,91369.0,9.4e-07]
[1767569082483,0.04842046,91370.0,91369.0,9.4e-07]
[1767569083421,0.03262235,91371.0,91369.0,9.4e-07]
[1767569083622,0.04842046,91370.0,91369.0,9.4e-07]
[1767569084666,0.06567889,91354.0,91351.0,0.0001538]
[1767569084920,0.06529673,91353.0,91338.0,0.08188121]
[1767569085068,0.06567978,91353.0,91343.0,0.01094774]
[1767569085273,0.01094654,91353.0,91344.0,0.01094762]
[1767569085476,0.01094666,91352.0,91345.0,0.0109475]
[1767569086029,0.01094678,91351.0,91342.0,0.01094786]
[1767569086216,0.0109469,91350.0,91342.0,0.01094786]
[1767569086436,0.0109469,91350.0,91341.0,0.01094798]
[1767569086995,0.01130682,91352.0,91342.0,0.01094786]
[1767569087237,0.01094678,91351.0,91343.0,0.01094774]
[1767569087446,0.0109469,91350.0,91343.0,0.01094774]
[1767569087677,0.0109469,91350.0,91342.0,0.01094786]
[1767569087882,0.00036016,91352.0,91344.0,0.01094762]
[1767569088261,0.01130682,91352.0,91343.0,0.01094774]
[1767569088582,0.01094678,91351.0,91344.0,0.01094762]
[1767569089007,0.01094678,91351.0,91343.0,0.01094774]
[1767569089213,0.01084677,91351.0,91342.0,0.01094786]
[1767569089412,0.01084677,91351.0,91343.0,0.01094774]
[1767569089709,0.01084677,91351.0,91342.0,0.01094786]
[1767569090008,0.01094678,91351.0,91344.0,0.01094762]
[1767569090368,0.0109469,91350.0,91341.0,0.01094798]
[1767569090573,0.0109469,91350.0,91342.0,0.01094786]
[1767569090770,0.01094702,91349.0,91342.0,0.01094786]
[1767569090997,0.01094786,91342.0,91339.0,0.04901287]
[1767569091199,0.05473873,91343.0,91321.0,0.00023032]
[1767569091200,0.01094858,91336.0,91326.0,0.06573822]
[1767569091396,0.01094858,91336.0,91326.0,4.008e-05]
[1767569091397,0.0109487,91335.0,91326.0,4.008e-05]
[1767569091596,0.01094942,91329.0,91326.0,4.008e-05]
[1767569091804,0.05474832,91327.0,91326.0,4.008e-05]
[1767569091999,0.01095074,91318.0,91315.0,0.04901287]
[1767569092203,0.000959,91315.0,91310.0,0.04901287]
[1767569092798,0.06570576,91317.0,91310.0,0.04901287]
[1767569093002,0.01095074,91318.0,91310.0,0.04901287]
[1767569093324,0.00035994,91318.0,91311.0,0.01095158]
[1767569093699,0.00035994,91318.0,91312.0,0.03287146]
[1767569093896,0.01131068,91318.0,91312.0,0.02192]
[1767569094083,0.01095086,91317.0,91312.0,0.02192]
[1767569094293,0.01121067,91318.0,91312.0,0.02192]
[1767569094490,0.01095086,91317.0,91312.0,0.02192]
[1767569094700,0.01121067,91318.0,91312.0,0.02192]
[1767569095131,0.01095062,91319.0,91312.0,0.02192]
[1767569095132,0.01095086,91317.0,91312.0,0.02192]
[1767569095375,0.01085085,91317.0,91314.0,0.00020922]
[1767569096105,0.05475491,91316.0,91314.0,2.2e-07]
[1767569096472,0.01085085,91317.0,91314.0,2.2e-07]
[1767569096845,0.05475491,91316.0,91314.0,2.2e-07]
[1767569098575,0.01085085,91317.0,91314.0,2.2e-07]
[1767569099959,0.0656057,91317.0,91314.0,2.2e-07]
[1767569100590,0.0109505,91320.0,91314.0,2.2e-07]
[1767569100766,0.01095074,91318.0,91314.0,2.2e-07]
[1767569101254,0.01085073,91318.0,91314.0,2.2e-07]
[1767569101466,0.01094894,91333.0,91321.0,0.04601884]
[1767569101672,0.02242739,91331.0,91322.0,0.04601884]
[1767569101880,0.02242739,91331.0,91320.0,0.0109505]
[1767569101881,0.0109493,91330.0,91320.0,0.0109505]
[1767569102082,0.01095038,91321.0,91314.0,0.02192022]
[1767569102326,0.01095002,91324.0,91315.0,0.0109511]
[1767569102520,0.01095026,91322.0,91314.0,0.02192022]
[1767569102720,0.01095062,91319.0,91314.0,0.02192022]
[1767569102924,0.01095038,91321.0,91314.0,0.02192022]
[1767569102925,0.06565414,91320.0,91314.0,2.2e-07]
[1767569103131,0.0657004,91324.0,91314.0,2.2e-07]
[1767569103512,0.01095014,91323.0,91314.0,2.2e-07]
[1767569103715,0.01095014,91323.0,91316.0,0.01095098]
[1767569104295,0.01095014,91323.0,91314.0,2.2e-07]
[1767569104517,0.01095026,91322.0,91314.0,0.01095144]
[1767569104843,0.01095062,91319.0,91314.0,2.2e-07]
[1767569105043,0.01095086,91317.0,91314.0,2.2e-07]
[1767569105499,0.11151067,91317.0,91314.0,2.2e-07]
[1767569106685,0.04580499,91315.0,91314.0,2.2e-07]
[1767569108590,0.11151771,91307.0,91297.0,0.02232]
[1767569108789,0.05476511,91299.0,91297.0,0.00075994]
[1767569108970,0.04580499,91298.0,91297.0,0.00075994]
[1767569109759,0.04580499,91298.0,91297.0,9.4e-07]
[1767569110595,0.03504599,91298.0,91297.0,9.4e-07]
[1767569111980,0.0898117,91298.0,91297.0,9.4e-07]
[1767569112130,0.04580499,91292.0,91281.0,0.01095518]
[1767569112333,0.04580499,91288.0,91283.0,0.01095494]
[1767569112557,0.04580499,91288.0,91282.0,0.01095506]
[1767569112719,0.04580499,91288.0,91277.0,0.0005538]
[1767569112720,0.04580499,91279.0,91277.0,0.0005538]
[1767569113108,0.04518104,91279.0,91277.0,0.0005538]
[1767569113320,0.04518104,91279.0,91278.0,0.05477771]
[1767569113516,0.04580499,91296.0,91289.0,0.01095422]
[1767569113668,0.00025974,91292.0,91289.0,0.01095422]
[1767569113882,0.04606473,91292.0,91289.0,0.01095422]
[1767569114093,0.00025974,91292.0,91291.0,0.05476991]
[1767569114452,0.03417802,91297.0,91292.0,0.01095386]
[1767569114647,0.03417802,91297.0,91292.0,5.906e-05]
[1767569115379,0.04580499,91299.0,91295.0,0.0109535]
[1767569115596,0.04580499,91299.0,91293.0,0.01095374]
[1767569116111,0.04580499,91299.0,91292.0,0.01101292]
[1767569116557,0.04580499,91299.0,91293.0,0.01095374]
[1767569116682,0.04580499,91299.0,91294.0,0.01095362]
[1767569116883,0.04580499,91299.0,91293.0,0.01095374]
[1767569117241,0.05675801,91299.0,91292.0,5.906e-05]
[1767569117384,0.04580499,91299.0,91292.0,5.906e-05]
[1767569117613,0.05675801,91299.0,91292.0,5.906e-05]
[1767569117811,0.04580499,91299.0,91292.0,0.01101292]
[1767569118047,0.05675801,91299.0,91292.0,5.906e-05]
[1767569118452,0.04975801,91299.0,91292.0,5.906e-05]
[1767569118648,0.04580499,91298.0,91292.0,0.01101292]
[1767569119071,0.02196,91299.0,91292.0,5.906e-05]
[1767569119233,0.02196,91299.0,91292.0,0.01101292]
[1767569119599,0.04580499,91298.0,91293.0,0.01095374]
[1767569119922,0.02196,91299.0,91293.0,0.01095374]
[1767569120242,0.04580499,91298.0,91293.0,0.01095374]
[1767569120657,0.02196,91299.0,91293.0,0.01095374]
[1767569121080,0.04580499,91298.0,91293.0,0.01095374]
[1767569121574,0.02196,91299.0,91293.0,0.01095374]
[1767569121923,0.04680399,91293.0,91281.0,0.01095518]
[1767569122128,0.04580499,91288.0,91282.0,0.01095506]
[1767569122323,0.04580499,91288.0,91281.0,0.01131493]
[1767569122562,0.01095422,91289.0,91282.0,0.01095506]
[1767569122770,0.0109541,91290.0,91283.0,0.01095494]
[1767569123075,0.04580499,91289.0,91283.0,0.01095494]
[1767569123280,0.04580499,91289.0,91286.0,0.01095458]
[1767569123580,0.01095386,91292.0,91284.0,0.01095482]
[1767569123726,0.01095362,91294.0,91285.0,0.0109547]
[1767569123937,0.01095362,91294.0,91287.0,0.01095446]
[1767569123938,0.04580499,91293.0,91287.0,0.01095446]
[1767569124208,0.01095362,91294.0,91287.0,0.01095446]
[1767569124400,0.0109535,91295.0,91288.0,0.01095434]
[1767569124688,0.04580499,91294.0,91288.0,0.01095434]
[1767569124919,0.05675861,91294.0,91287.0,0.01095446]
[1767569125075,0.01095362,91294.0,91287.0,0.01095446]
[1767569125405,0.05675861,91294.0,91287.0,0.01095446]
[1767569125698,0.04580499,91294.0,91288.0,0.01095434]
[1767569126061,0.04080499,91294.0,91287.0,0.01095446]
[1767569126269,0.04080499,91294.0,91289.0,0.01095422]
[1767569126475,0.04080499,91294.0,91287.0,0.01095446]
[1767569126476,0.04580499,91304.0,91297.0,0.01095326]
[1767569126821,0.01095218,91306.0,91297.0,0.01095326]
[1767569126822,0.06776499,91303.0,91298.0,0.01095314]
[1767569126955,0.02196,91303.0,91298.0,0.01095314]
[1767569127159,0.04580499,91302.0,91298.0,0.01095314]
[1767569127405,0.04580499,91302.0,91297.0,0.01095326]
[1767569127571,0.68351114,91343.0,91310.0,0.0109517]
[1767569127769,0.01095038,91321.0,91313.0,0.01095134]
[1767569128094,0.01095038,91321.0,91309.0,0.05475872]
[1767569128260,0.05675537,91321.0,91309.0,0.05475872]
[1767569128462,0.0109505,91320.0,91313.0,0.01095134]
[1767569128682,0.05675537,91321.0,91313.0,0.01102228]
[1767569128881,0.01095026,91322.0,91313.0,7.094e-05]
[1767569129083,0.01095038,91321.0,91314.0,0.01095122]
[1767569129285,0.01095038,91321.0,91313.0,7.094e-05]
[1767569129535,0.05665572,91318.0,91313.0,9.4e-07]
[1767569129841,0.01095062,91319.0,91313.0,9.4e-07]
[1767569130788,0.05474719,91329.0,91319.0,0.04876645]
[1767569130985,0.01095026,91322.0,91319.0,7e-05]
[1767569131363,0.02196,91326.0,91320.0,0.0109505]
[1767569131564,0.01094942,91329.0,91320.0,0.0109505]
[1767569131760,0.0329093,91330.0,91322.0,0.01095026]
[1767569131960,0.01094942,91329.0,91322.0,0.01095026]
[1767569132162,0.01094942,91329.0,91321.0,0.01095038]
[1767569133220,0.01094942,91329.0,91322.0,0.01095026]
[1767569133441,0.02196,91330.0,91323.0,0.01095014]
[1767569133872,0.0290631,91330.0,91323.0,0.01095014]
[1767569134284,0.0181138,91330.0,91322.0,0.01095026]
[1767569134488,0.04834668,91336.0,91330.0,0.0110193]
[1767569134644,0.02196,91338.0,91333.0,0.01094894]
[1767569134848,0.02196,91338.0,91332.0,0.01094906]
[1767569135561,0.02196,91338.0,91331.0,0.01094918]
[1767569135963,0.02189121,91338.0,91330.0,0.0109493]
[1767569136766,0.01094846,91337.0,91330.0,0.0108593]
[1767569136966,0.03283955,91338.0,91331.0,0.01094918]
[1767569137166,0.03283955,91338.0,91332.0,0.01094906]
[1767569137362,0.05473831,91344.0,91333.0,0.01094894]
[1767569137605,0.02196,91343.0,91335.0,0.0109487]
[1767569137785,0.01094786,91342.0,91335.0,0.0109487]
[1767569138109,0.01084799,91340.0,91329.0,0.01094942]
[1767569138314,0.01084799,91340.0,91326.0,0.06569831]
[1767569138315,0.06030821,91335.0,91326.0,0.01094978]
[1767569138485,0.06030821,91335.0,91330.0,0.0109493]
[1767569138486,0.04935951,91335.0,91330.0,0.0109493]
[1767569138692,0.04935951,91335.0,91328.0,0.01094954]
[1767569139296,0.04935951,91335.0,91330.0,0.0109493]
[1767569140332,0.01094858,91336.0,91330.0,0.0109493]
[1767569140545,0.01094846,91337.0,91330.0,0.0109493]
[1767569141296,0.04935951,91339.0,91330.0,0.0109493]
[1767569141514,0.01094702,91349.0,91339.0,0.01094822]
[1767569141729,0.04376,91354.0,91337.0,0.000999]
[1767569141730,0.01094762,91344.0,91337.0,0.01094846]
[1767569141959,0.01094762,91344.0,91335.0,0.0109487]
[1767569141960,0.26268923,91354.0,91335.0,0.0109487]
[1767569141961,0.04935951,91356.0,91351.0,0.01094678]
[1767569142179,0.02196,91355.0,91350.0,0.0109469]
[1767569142384,0.02196,91355.0,91349.0,0.01094702]
[1767569142803,0.02196,91355.0,91350.0,0.0109469]
[1767569143019,0.02196,91355.0,91351.0,0.01094678]
[1767569143234,0.02196,91355.0,91350.0,0.01102605]
[1767569143437,0.02196,91355.0,91351.0,0.01094678]
[1767569143607,0.02196,91355.0,91352.0,0.01094666]
[1767569143818,0.02196,91355.0,91351.0,0.01094678]
[1767569144026,0.02196,91355.0,91350.0,7.915e-05]
[1767569144220,0.02196,91355.0,91350.0,0.01102605]
[1767569144551,0.02196,91355.0,91350.0,7.915e-05]
[1767569144702,0.0329063,91355.0,91350.0,7.915e-05]
[1767569145348,0.02196,91355.0,91350.0,7.915e-05]
[1767569145552,0.02196,91355.0,91350.0,0.01102605]
[1767569145708,0.02196,91355.0,91351.0,0.01094678]
[1767569146358,0.02196,91355.0,91350.0,0.01102605]
[1767569146765,0.07131951,91355.0,91350.0,7.915e-05]
[1767569146940,0.02196,91355.0,91349.0,0.01094702]
[1767569147140,0.02196,91355.0,91349.0,0.01104196]
[1767569148277,0.0329063,91355.0,91349.0,0.01104196]
[1767569148675,0.04935951,91359.0,91350.0,0.0109469]
[1767569149076,0.02196,91360.0,91359.0,0.01194482]
[1767569149280,0.00696,91360.0,91359.0,0.01194482]
[1767569149498,0.06030402,91370.0,91359.0,0.01194482]
[1767569149499,0.04935951,91375.0,91363.0,0.05472674]
[1767569149707,0.04935951,91375.0,91365.0,0.05472555]
[1767569149708,0.02196,91366.0,91365.0,0.05472555]
[1767569149913,0.02196,91366.0,91360.0,0.0109457]
[1767569150129,0.02196,91366.0,91361.0,0.01094558]
[1767569150768,0.02196,91366.0,91363.0,0.01094534]
[1767569150981,0.02196,91366.0,91359.0,0.01094582]
[1767569151223,0.04935951,91359.0,91352.0,0.01094666]
[1767569151440,0.01094582,91359.0,91353.0,0.01094654]
[1767569151610,0.01094558,91361.0,91354.0,0.01094642]
[1767569151787,0.04935951,91364.0,91358.0,0.01094594]
[1767569151968,0.21887817,91376.0,91351.0,0.21893567]
[1767569151969,0.01090267,91376.0,91365.0,0.01094511]
[1767569152171,0.01094403,91374.0,91366.0,0.01094499]
[1767569152368,0.01094427,91372.0,91365.0,0.01094511]
[1767569152778,0.07131951,91375.0,91366.0,0.06566943]
[1767569153006,0.02196,91375.0,91370.0,0.01094451]
[1767569153200,0.01094415,91373.0,91366.0,0.01094499]
[1767569153402,0.01094415,91373.0,91361.0,0.21891109]
[1767569153403,0.000999,91366.0,91358.0,0.01094594]
[1767569153708,0.00094704,91366.0,91360.0,0.0109457]
[1767569153903,0.06125154,91366.0,91356.0,0.01094618]